bitfinex/quotes_SOLUSD_20240708
["timestamp","ask_amount","ask_price","bid_price","bid_amount"]
[1720449589313,51.49,136.7,136.55,122.31]
[1720449589507,0.3428491,136.71,136.55,22.31]
[1720449589705,7.6575491,136.71,136.57,100.0]
[1720449589910,7.6576491,136.71,136.54,18.3087]
[1720449590120,0.3428491,136.71,136.53,100.0]
[1720449590408,0.3428491,136.71,136.56,0.17]
[1720449591203,0.3428491,136.71,136.55,0.17]
[1720449591402,0.3428491,136.71,136.62,0.17]
[1720449591607,0.3428491,136.71,136.64,0.17]
[1720449592204,0.3428491,136.71,136.61,0.17]
[1720449592435,0.3428491,136.71,136.59,0.17]
[1720449592804,0.3428491,136.71,136.56,200.0]
[1720449593003,7.3158,136.69,136.54,100.0]
[1720449593205,7.3153,136.7,136.55,22.31]
[1720449593509,0.3428491,136.71,136.58,7.3215]
[1720449593814,0.3428491,136.71,136.63,122.31]
[1720449594031,0.3428491,136.71,136.59,200.0]
[1720449594210,0.3428491,136.71,136.53,36.6207]
[1720449594211,0.3428491,136.71,136.57,107.322]
[1720449594407,0.3428491,136.71,136.57,100.0]
[1720449594641,0.3428491,136.71,136.58,0.17]
[1720449595214,0.3428491,136.71,136.55,100.0]
[1720449595415,0.17,136.69,136.52,200.0]
[1720449595613,12.75500416,136.7,136.52,200.0]
[1720449595926,20.0,136.69,136.54,100.0]
[1720449596237,0.3428491,136.71,136.57,200.0]
[1720449596416,0.3428491,136.71,136.58,22.31]
[1720449596726,0.17,136.7,136.58,22.31]
[1720449596936,1.99931169,136.7,136.58,22.31]
[1720449597607,0.17,136.69,136.55,22.31]
[1720449597804,0.17,136.67,136.49,100.0]
[1720449598005,2.00006165,136.67,136.51,100.0]
[1720449598205,0.17,136.66,136.51,200.0]
[1720449598645,0.17,136.65,136.49,100.0]
[1720449598939,1.83014559,136.65,136.5,22.31]
[1720449599141,1.82998434,136.67,136.54,100.0]
[1720449599307,7.6575491,136.71,136.58,22.31]
[1720449599508,1.82941306,136.7,136.58,22.31]
[1720449599827,0.3428491,136.71,136.6,22.31]
[1720449600030,0.3428491,136.71,136.61,0.17]
[1720449600231,0.3428491,136.71,136.61,1.63314872]
[1720449600435,9.48646001,136.71,136.62,22.31]
[1720449600635,1.82935392,136.7,136.6,1.46293454]
[1720449600938,0.3428491,136.71,136.61,1.46300041]
[1720449601230,7.3152,136.7,136.54,1.46300041]
[1720449601443,1.82957578,136.69,136.55,1.46289327]
[1720449601605,1.82957578,136.69,136.56,22.31]
[1720449601806,0.3428491,136.71,136.59,22.31]
[1720449602037,0.3428491,136.71,136.58,100.0]
[1720449602038,0.3428491,136.71,136.63,100.0]
[1720449602604,0.3428491,136.71,136.63,122.31]
[1720449602905,0.3428491,136.71,136.56,66.49]
[1720449602906,0.3428491,136.71,136.6,100.0]
[1720449603106,0.3428491,136.71,136.61,1.63306704]
[1720449603322,0.3428491,136.71,136.65,0.17]
[1720449603517,0.3428491,136.71,136.67,7.4868]
[1720449603733,0.3428491,136.71,136.7,122.31]
[1720449603909,0.3428491,136.71,136.7,100.17]
[1720449604334,0.3428491,136.71,136.7,220.51]
[1720449604534,51.49,136.88,136.7,220.51]
[1720449604535,1.82729111,136.85,136.71,100.17]
[1720449604703,1.82729111,136.85,136.64,51.49]
[1720449604704,1.82734201,136.87,136.72,200.0]
[1720449604909,1.82681534,136.91,136.76,0.17]
[1720449605113,1.82681534,136.91,136.78,100.0]
[1720449605328,1.82681534,136.91,136.79,1.6310421]
[1720449605527,1.82681534,136.91,136.8,1.46098711]
[1720449605734,1.82681534,136.91,136.73,0.17]
[1720449605735,1.82681534,136.91,136.77,1.46142274]
[1720449605938,20.08801534,136.91,136.75,0.17]
[1720449606137,1.3907461,136.93,136.8,0.17]
[1720449606318,9.13051223,136.92,136.8,1.46096687]
[1720449606517,9.13041223,136.92,136.8,1.46096687]
[1720449606715,1.82691223,136.92,136.81,0.17]
[1720449606929,1.3907461,136.93,136.83,0.17]
[1720449607131,1.3907461,136.93,136.83,1.46078801]
[1720449607348,1.82614945,136.92,136.84,1.46068125]
[1720449607526,1.3907461,136.93,136.76,100.0]
[1720449607733,8.6937461,136.93,136.8,100.0]
[1720449607913,1.82632277,136.92,136.81,1.46105821]
[1720449608228,9.12982277,136.92,136.81,1.46105821]
[1720449608424,1.82632277,136.92,136.81,1.46105821]
[1720449608745,1.82632277,136.92,136.8,1.46109469]
[1720449608925,51.49,136.91,136.74,1.45856274]
[1720449609129,18.2654,136.88,136.74,1.45856274]
[1720449609444,0.17,136.86,136.7,1.46220593]
[1720449609755,1.82745102,136.86,136.75,100.0]
[1720449609922,53.31679782,136.92,136.71,100.0]
[1720449610119,18.2698,136.84,136.67,100.0]
[1720449610319,18.2736,136.81,136.68,1.46221678]
[1720449610522,7.3119,136.77,136.66,1.46274736]
[1720449610735,21.82842369,136.76,136.64,1.46273895]
[1720449610940,21.82842369,136.76,136.56,100.0]
[1720449610941,1.82842369,136.76,136.56,100.0]
[1720449611146,1.82842369,136.76,136.56,200.0]
[1720449611147,20.34,136.75,136.56,200.0]
[1720449611331,1.82883858,136.79,136.64,100.0]
[1720449611645,7.3067,136.86,136.72,100.0]
[1720449611838,18.2599,136.92,136.68,7.3161]
[1720449611839,1.82715488,136.85,136.74,100.0]
[1720449612044,7.3062,136.87,136.75,0.17]
[1720449612247,11.17422638,136.91,136.78,0.17]
[1720449612568,51.49,136.96,136.68,51.49]
[1720449612569,7.3094,136.81,136.72,1.46136779]
[1720449612858,53.31785428,136.8,136.62,22.31]
[1720449613065,51.49,136.76,136.62,22.31]
[1720449613299,1.82840432,136.87,136.71,100.0]
[1720449613558,1.82840432,136.87,136.67,100.0]
[1720449613559,0.17,136.85,136.67,100.0]
[1720449613726,6.5453655,136.84,136.69,100.0]
[1720449613924,4.62886088,136.86,136.75,22.31]
[1720449614225,0.8699553,136.95,136.74,100.0]
[1720449614226,9.13209332,136.89,136.77,22.31]
[1720449614452,1.82659332,136.89,136.78,1.45959009]
[1720449614747,1.82659332,136.89,136.77,1.46115507]
[1720449614952,1.82659332,136.89,136.7,100.0]
[1720449614953,51.49,136.86,136.7,100.0]
[1720449615151,7.3073,136.85,136.73,100.0]
[1720449615352,11.17422638,136.88,136.73,100.0]
[1720449615552,1.231306,136.91,136.76,100.0]
[1720449615845,1.231306,136.91,136.82,122.31]
[1720449616045,1.231306,136.91,136.8,100.0]
[1720449616469,1.231306,136.91,136.81,100.17]
[1720449616671,8.535506,136.91,136.82,1.45921824]
[1720449617169,1.231306,136.91,136.82,1.45921824]
[1720449617546,1.231306,136.91,136.83,0.17]
[1720449617765,1.231306,136.91,136.83,1.62941338]
[1720449617954,1.231306,136.91,136.85,0.17]
[1720449618272,1.231306,136.91,136.85,1.62920009]
[1720449618479,1.231306,136.91,136.85,1.45920009]
[1720449618778,1.231306,136.91,136.77,100.0]
[1720449618779,1.231306,136.91,136.81,1.45920009]
[1720449619098,1.231306,136.91,136.86,100.0]
[1720449619249,1.231306,136.91,136.87,22.31]
[1720449619574,1.231306,136.91,136.9,100.0]
[1720449619770,1.231306,136.91,136.89,0.17]
[1720449619969,1.231306,136.91,136.9,1.45657686]
[1720449620269,1.231306,136.91,136.9,1.79657686]
[1720449620447,1.231306,136.91,136.9,1.62657686]
[1720449620655,1.231306,136.91,136.9,1.45657686]
[1720449621053,1.231306,136.91,136.87,100.0]
[1720449621358,1.231306,136.91,136.88,1.46032621]
[1720449621747,1.231306,136.91,136.85,1.46032621]
[1720449621972,1.231306,136.91,136.86,1.46059465]
[1720449622381,1.231306,136.91,136.9,122.31]
[1720449622581,1.231306,136.91,136.9,222.31]
[1720449623298,1.231306,136.91,136.9,222.48]
[1720449623589,1.231306,136.91,136.9,122.48]
[1720449623775,1.231306,136.91,136.9,123.24377882]
[1720449623969,1.231306,136.91,136.9,222.82]
[1720449624379,1.051306,136.91,136.9,222.82]
[1720449624891,1.051306,136.91,136.9,242.82]
[1720449625275,1.051306,136.91,136.9,222.31]
[1720449625489,1.051306,136.91,136.85,15.0]
[1720449625490,1.051306,136.91,136.85,100.0]
[1720449625785,1.051306,136.91,136.86,0.65766716]
[1720449626173,1.051306,136.91,136.83,100.0]
[1720449626371,1.051306,136.91,136.75,51.49]
[1720449626372,1.051306,136.91,136.87,100.0]
[1720449626601,1.051306,136.91,136.88,1.4601147]
[1720449627170,1.051306,136.91,136.84,1.4601147]
[1720449627580,8.355306,136.91,136.84,1.4601147]
[1720449627787,20.0,136.9,136.84,1.4601147]
[1720449628118,21.051306,136.91,136.85,1.46086331]
[1720449628307,1.051306,136.91,136.85,1.46086331]
[1720449628595,1.051306,136.91,136.86,1.46075656]
[1720449629423,1.051306,136.91,136.9,100.0]
[1720449629597,1.051306,136.91,136.86,101.46075656]
[1720449629598,1.051306,136.91,136.88,100.0]
[1720449629791,1.051306,136.91,136.89,1.45989988]
[1720449630411,1.051306,136.91,136.87,1.45991455]
[1720449630630,58.4392,137.11,136.81,100.0]
[1720449630631,0.8699553,137.23,137.01,100.0]
[1720449630803,0.8699553,137.23,136.9,36.97]
[1720449630804,51.49,137.16,136.93,100.0]
[1720449631123,7.2959,137.07,136.94,101.45971559]
[1720449631332,1.82442627,137.06,136.92,100.0]
[1720449631503,1.82453688,137.05,136.92,121.97]
[1720449631828,15.0,137.21,137.02,0.17]
[1720449632031,51.49,137.19,137.0,100.0]
[1720449632320,15.0,137.17,136.98,100.0]
[1720449632522,15.0,137.17,136.97,121.97]
[1720449632523,52.41188862,137.16,136.97,121.97]
[1720449632694,52.41188862,137.16,136.99,100.0]
[1720449632900,7.294,137.1,137.01,0.17]
[1720449633236,7.294,137.1,136.99,100.0]
[1720449633237,0.92188862,137.14,136.99,100.0]
[1720449633526,7.2936,137.11,137.0,0.17]
[1720449633836,0.92188862,137.1,137.0,0.17]
[1720449633994,0.92188862,137.1,136.98,0.17]
[1720449633995,7.2949,137.09,136.98,0.17]
[1720449634196,0.92188862,137.08,136.93,100.0]
[1720449634413,0.92188862,137.1,136.95,100.0]
[1720449634739,0.92188862,137.18,137.03,100.0]
[1720449634971,0.92188862,137.17,137.03,100.0]
[1720449635130,0.92188862,137.17,137.02,100.0]
[1720449635460,15.0,137.23,137.06,0.17]
[1720449635461,1.24193912,137.21,137.06,0.17]
[1720449635607,1.24193912,137.21,137.06,1.45842071]
[1720449635608,7.2909,137.16,137.06,1.45842071]
[1720449635810,0.92188862,137.15,137.06,1.45842071]
[1720449636035,7.2929,137.12,137.06,1.45842071]
[1720449636226,8.21528862,137.11,137.0,0.17]
[1720449636409,8.21608862,137.1,136.97,100.0]
[1720449636613,0.92188862,137.09,136.94,21.97]
[1720449636811,0.92188862,137.09,136.95,1.45939217]
[1720449637031,0.92188862,137.09,136.93,100.0]
[1720449637256,7.2956,137.07,136.95,100.0]
[1720449637430,20.92188862,137.06,136.93,100.0]
[1720449637633,0.34,137.05,136.9,21.97]
[1720449637830,0.34,137.05,136.87,100.0]
[1720449637831,0.17,137.03,136.87,100.0]
[1720449638060,0.17,137.01,136.83,100.0]
[1720449638274,52.58188862,137.01,136.81,100.0]
[1720449638558,0.17,136.98,136.81,100.0]
[1720449638772,7.3025,136.94,136.82,23.06272871]
[1720449639066,21.26188862,136.93,136.8,21.97]
[1720449639277,7.3041,136.91,136.8,21.97]
[1720449639564,21.09188862,136.9,136.8,21.97]
[1720449639764,21.09188862,136.9,136.81,0.42345663]
[1720449639765,0.92188862,136.89,136.81,0.42345663]
[1720449639933,0.17,136.88,136.81,1.06355936]
[1720449640140,0.92188862,136.89,136.81,1.06355936]
[1720449640333,51.49,136.96,136.81,1.06355936]
[1720449640334,0.92188862,136.91,136.81,1.06355936]
[1720449640534,0.34,136.92,136.81,1.06355936]
[1720449640734,0.92188862,136.92,136.81,1.06355936]
[1720449640956,0.34,136.91,136.8,21.97]
[1720449641161,1.26188862,136.91,136.75,21.97]
[1720449641335,0.17,136.9,136.76,21.97]
[1720449641645,0.17,136.88,136.72,2.928752]
[1720449641850,0.17,136.88,136.73,100.0]
[1720449641851,0.92188862,136.87,136.73,100.0]
[1720449642053,0.17,136.88,136.77,21.97]
[1720449642563,15.0,136.97,136.77,21.97]
[1720449642564,0.92188862,136.94,136.82,21.97]
[1720449642766,19.17258862,136.99,136.84,21.97]
[1720449642982,7.3023,136.95,136.85,1.34185085]
[1720449643273,0.92188862,136.94,136.86,1.39080075]
[1720449643476,7.3025,136.94,136.86,1.39080075]
[1720449643649,7.304,136.92,136.84,1.39100404]
[1720449643850,69.7417,136.98,136.81,0.17]
[1720449643851,0.92188862,136.97,136.81,0.17]
[1720449644057,7.3031,136.93,136.81,0.17]
[1720449644262,20.92188862,136.92,136.81,22.14]
[1720449644465,0.92188862,136.92,136.79,21.97]
[1720449644650,8.22538862,136.92,136.81,21.97]
[1720449644850,20.0,136.91,136.83,21.97]
[1720449645050,20.0,136.97,136.87,21.97]
[1720449645051,0.92188862,136.97,136.87,21.97]
[1720449645347,0.92188862,136.97,136.77,100.0]
[1720449645348,0.92188862,137.08,136.94,21.97]
[1720449645558,51.49,137.1,136.95,1.45872009]
[1720449645757,51.49,137.12,136.97,0.17]
[1720449645977,0.92188862,137.11,136.98,1.45917555]
[1720449646275,0.92188862,137.11,136.99,1.45945861]
[1720449646582,7.2965,137.06,136.99,1.45945861]
[1720449646874,0.92188862,137.09,136.99,0.17]
[1720449647078,7.295,137.08,136.99,1.62930255]
[1720449647382,7.2938,137.11,136.99,1.62930255]
[1720449647554,0.92188862,137.1,137.01,0.17]
[1720449647747,7.2935,137.11,137.01,1.45912003]
[1720449647957,0.92188862,137.1,137.02,1.45912003]
[1720449648156,7.2947,137.09,137.02,1.45912003]
[1720449648372,0.92188862,137.08,137.0,1.45912003]
[1720449648579,7.2956,137.07,137.0,1.45912003]
[1720449648859,7.2945,137.09,137.0,1.45912003]
[1720449649057,0.92188862,137.11,137.01,0.17]
[1720449649364,51.49,137.12,137.01,1.45890706]
[1720449649365,0.92188862,137.1,137.01,1.45890706]
[1720449649566,0.92188862,137.1,137.02,1.45903968]
[1720449649951,0.92188862,137.14,137.02,1.45903968]
[1720449650159,0.92188862,137.15,137.03,22.14]
[1720449650358,18.2253,137.18,137.04,1.45862418]
[1720449650561,18.2253,137.18,137.05,1.45868123]
[1720449650562,0.92188862,137.17,137.05,1.45868123]
[1720449650976,7.2914,137.15,137.05,1.45868123]
[1720449651179,0.92188862,137.14,137.05,1.45868123]
[1720449651375,0.92188862,137.14,137.06,0.17]
[1720449651572,0.92188862,137.2,137.07,1.45831962]
[1720449651764,0.92188862,137.2,137.08,0.17]
[1720449652082,19.14448862,137.2,137.08,1.45824545]
[1720449652287,18.2253,137.18,137.08,1.45824545]
[1720449652463,7.293,137.12,137.01,1.45876807]
[1720449652659,0.3200505,137.21,137.01,1.45876807]
[1720449652660,0.94792641,137.16,137.03,121.97]
[1720449652955,0.3200505,137.21,137.04,1.45851553]
[1720449652956,18.2243,137.18,137.04,1.45851553]
[1720449653179,69.7175,137.16,137.05,1.4584091]
[1720449653373,7.2938,137.11,137.0,1.4584091]
[1720449653576,0.94792641,137.15,137.0,1.4584091]
[1720449653755,8.23982641,137.14,137.03,21.97]
[1720449653957,20.0,137.13,137.04,1.45798341]
[1720449654161,7.4614,137.15,137.05,1.45787702]
[1720449654381,1.11792641,137.14,137.05,1.45787702]
[1720449654555,1.11792641,137.14,137.06,0.17]
[1720449654759,0.94792641,137.16,137.07,1.45857267]
[1720449654956,0.94792641,137.2,137.1,0.17]
[1720449655181,1.26797691,137.21,137.1,0.17]
[1720449655384,0.3200505,137.21,137.12,0.17]
[1720449655585,0.3200505,137.21,137.14,0.17]
[1720449656089,0.3200505,137.21,137.16,0.17]
[1720449656376,0.3200505,137.21,137.16,1.4575219]
[1720449656587,0.3200505,137.21,137.17,0.17]
[1720449656761,0.3200505,137.21,137.18,1.45727731]
[1720449657088,0.3200505,137.21,137.19,1.45689471]
[1720449657256,0.3200505,137.21,137.18,1.62246988]
[1720449657787,0.3200505,137.21,137.18,1.45246988]
[1720449658400,0.3200505,137.21,137.07,100.0]
[1720449658682,7.6081505,137.21,137.08,1.45814154]
[1720449658891,7.6081505,137.21,137.11,100.0]
[1720449658892,0.3200505,137.21,137.11,100.0]
[1720449659059,0.3200505,137.21,137.13,100.0]
[1720449659378,0.3200505,137.21,137.11,21.97]
[1720449659577,0.3200505,137.21,137.12,100.0]
[1720449659886,0.3200505,137.21,137.13,100.0]
[1720449660053,0.3200505,137.21,137.14,0.42223415]
[1720449660259,0.3200505,137.21,137.12,100.0]
[1720449660478,0.3200505,137.21,137.15,100.0]
[1720449660693,0.3200505,137.21,137.19,100.0]
[1720449660878,0.3200505,137.21,137.2,0.17]
[1720449661587,0.3200505,137.21,137.16,20.0]
[1720449661588,0.3200505,137.21,137.16,100.0]
[1720449661799,0.3200505,137.21,137.14,100.0]
[1720449662184,0.3200505,137.21,137.16,100.0]
[1720449662358,0.3200505,137.21,137.12,100.0]
[1720449662564,0.3200505,137.21,137.13,0.49656239]
[1720449662782,0.3200505,137.21,137.14,100.0]
[1720449663068,0.3200505,137.21,137.1,100.0]
[1720449663069,8.55607691,137.21,137.15,0.49657458]
[1720449663273,8.55607691,137.21,137.11,0.58710803]
[1720449663274,1.11792641,137.2,137.11,0.58710803]
[1720449663476,1.28792641,137.2,137.11,0.58710803]
[1720449663681,0.3200505,137.21,137.12,0.8339348]
[1720449663997,0.3200505,137.21,137.17,100.0]
[1720449664593,0.3200505,137.21,137.15,100.0]
[1720449664902,0.3200505,137.21,137.11,100.0]
[1720449664903,0.3200505,137.21,137.16,1.62713001]
[1720449665414,0.3200505,137.21,137.2,0.17]
[1720449665688,0.3200505,137.21,137.2,22.48]
[1720449665886,0.94792641,137.4,137.21,100.0]
[1720449666195,1.2509291,137.41,137.26,0.17]
[1720449666196,0.94792641,137.39,137.26,0.17]
[1720449666392,7.2802,137.36,137.26,0.17]
[1720449666570,0.94792641,137.35,137.27,0.46314669]
[1720449666769,1.2509291,137.41,137.28,22.14]
[1720449666770,0.94792641,137.39,137.28,22.14]
[1720449667008,0.94792641,137.39,137.29,0.46307922]
[1720449667209,0.94792641,137.39,137.21,118.2189]
[1720449667210,0.94792641,137.39,137.3,1.14605373]
[1720449667511,0.94792641,137.39,137.23,100.0]
[1720449667817,0.94792641,137.39,137.21,100.0]
[1720449668020,18.1984,137.38,137.22,0.9078086]
[1720449668316,0.94792641,137.37,137.25,100.0]
[1720449668487,0.94792641,137.38,137.26,1.45608374]
[1720449668824,8.22592641,137.4,137.27,101.45597766]
[1720449668996,1.2509291,137.41,137.29,100.0]
[1720449669323,1.2509291,137.41,137.32,0.17]
[1720449669510,1.2509291,137.41,137.33,1.45537057]
[1720449669822,1.2509291,137.41,137.34,122.48]
[1720449669993,1.2509291,137.41,137.38,0.17]
[1720449670200,1.2509291,137.41,137.38,0.34]
[1720449670384,1.2509291,137.41,137.4,0.17]
[1720449670782,1.2509291,137.41,137.38,0.17]
[1720449671006,1.2509291,137.41,137.4,0.17]
[1720449671213,1.2509291,137.41,137.38,0.34]
[1720449671791,1.2509291,137.41,137.4,0.17]
[1720449671992,1.2509291,137.41,137.4,0.34]
[1720449672409,1.2509291,137.41,137.4,0.17]
[1720449672708,1.2509291,137.41,137.4,22.31]
[1720449673211,0.04325856,137.52,137.48,0.17]
[1720449673714,0.04325856,137.52,137.45,121.97]
[1720449673715,0.04325856,137.52,137.39,100.0]
[1720449673889,0.04325856,137.52,137.34,100.0]
[1720449674484,0.04325856,137.52,137.36,100.0]
[1720449674715,0.17,137.49,137.34,100.0]
[1720449674911,20.34,137.49,137.39,100.0]
[1720449675115,20.04325856,137.52,137.39,100.0]
[1720449675116,0.04325856,137.52,137.44,100.0]
[1720449675698,0.04325856,137.52,137.46,100.0]
[1720449676135,0.04325856,137.52,137.51,0.17]
[1720449676303,0.04325856,137.52,137.51,0.34]
[1720449676503,0.04325856,137.52,137.51,100.34]
[1720449676895,0.04325856,137.52,137.51,122.48]
[1720449677089,0.04325856,137.52,137.51,182.9325]
[1720449677291,7.2647,137.66,137.54,200.0]
[1720449677511,18.1556,137.7,137.55,0.17]
[1720449677823,18.1633,137.65,137.51,100.0]
[1720449678027,18.1584,137.68,137.51,100.0]
[1720449678201,87.7993,137.71,137.55,100.0]
[1720449678395,18.154,137.72,137.55,100.0]
[1720449678621,7.2632,137.68,137.55,100.0]
[1720449678797,51.49,137.75,137.57,100.0]
[1720449679004,18.1509,137.74,137.59,100.0]
[1720449679320,18.1565,137.7,137.54,0.17]
[1720449679514,18.1565,137.7,137.54,0.34]
[1720449679826,18.1588,137.68,137.51,200.0]
[1720449680036,15.0,137.78,137.55,100.0]
[1720449680336,51.49,137.76,137.57,100.0]
[1720449680495,51.49,137.76,137.55,100.0]
[1720449680700,36.2931,137.77,137.53,100.0]
[1720449681028,1.2509291,137.82,137.6,121.97]
[1720449681320,1.2509291,137.82,137.61,41.97]
[1720449681321,51.49,137.81,137.61,41.97]
[1720449681522,7.259,137.76,137.61,41.97]
[1720449681824,18.1447,137.79,137.61,20.0]
[1720449682007,18.1447,137.79,137.61,41.97]
[1720449682209,7.2611,137.72,137.6,100.0]
[1720449682421,15.0,137.77,137.58,100.0]
[1720449682720,18.149,137.75,137.58,100.0]
[1720449682922,18.149,137.75,137.56,100.0]
[1720449682923,51.49,137.77,137.6,100.0]
[1720449683116,51.49,137.79,137.6,100.0]
[1720449683331,7.2617,137.71,137.61,100.0]
[1720449683500,20.0,137.7,137.57,100.0]
[1720449683848,20.0,137.75,137.61,100.0]
[1720449684136,16.2509291,137.82,137.61,100.0]
[1720449684137,52.7409291,137.82,137.61,100.0]
[1720449684317,1.2509291,137.82,137.61,100.0]
[1720449684630,1.2509291,137.82,137.61,137.4369]
[1720449684836,1.2509291,137.82,137.7,100.0]
[1720449685003,1.2509291,137.82,137.7,0.17]
[1720449685199,1.2509291,137.82,137.67,100.0]
[1720449685399,7.2585,137.77,137.67,100.0]
[1720449685626,7.2601,137.74,137.62,100.0]
[1720449685942,7.2601,137.74,137.6,100.0]
[1720449686118,7.2594,137.76,137.62,121.97]
[1720449686428,1.2509291,137.82,137.68,100.0]
[1720449686641,1.2509291,137.82,137.66,100.0]
[1720449686811,1.2509291,137.82,137.63,100.0]
[1720449687016,7.2623,137.7,137.58,100.0]
[1720449687216,1.2509291,137.82,137.53,51.49]
[1720449687217,7.2631,137.69,137.55,200.0]
[1720449687405,15.0,137.74,137.57,100.0]
[1720449687612,15.0,137.74,137.55,200.0]
[1720449687832,18.1536,137.72,137.54,100.0]
[1720449688128,0.17,137.66,137.52,100.0]
[1720449688437,0.17,137.66,137.46,15.0]
[1720449688438,0.17,137.6,137.46,100.0]
[1720449688722,0.17,137.61,137.46,100.0]
[1720449688723,0.17,137.61,137.47,100.0]
[1720449688925,7.2681,137.59,137.48,100.0]
[1720449689227,7.2681,137.59,137.46,100.0]
[1720449689228,20.34,137.58,137.46,200.0]
[1720449689418,0.17,137.57,137.43,100.0]
[1720449690021,0.17,137.57,137.41,100.0]
[1720449690339,0.17,137.57,137.35,100.0]
[1720449690340,51.49,137.52,137.35,100.0]
[1720449690625,7.2742,137.48,137.33,100.0]
[1720449690831,20.34,137.47,137.33,100.0]
[1720449691027,20.17,137.47,137.36,100.0]
[1720449691329,20.17,137.47,137.34,100.0]
[1720449691511,7.4449,137.46,137.34,100.0]
[1720449691715,20.17,137.45,137.34,100.0]
[1720449691906,20.17,137.45,137.29,100.0]
[1720449691907,0.34,137.44,137.29,100.0]
[1720449692109,0.34,137.44,137.28,100.0]
[1720449692110,0.34,137.44,137.31,100.0]
[1720449692416,0.17,137.44,137.35,121.97]
[1720449692626,54.5208,137.57,137.39,100.0]
[1720449692800,18.1765,137.54,137.39,100.0]
[1720449692999,15.0,137.59,137.33,100.0]
[1720449693000,7.2763,137.44,137.33,100.0]
[1720449693308,7.2763,137.44,137.3,100.0]
[1720449693309,51.49,137.52,137.37,0.17]
[1720449693310,7.2742,137.48,137.37,0.17]
[1720449693526,51.49,137.52,137.37,0.17]
[1720449693835,0.34,137.51,137.37,0.17]
[1720449694039,51.49,137.52,137.38,100.0]
[1720449694245,7.27,137.56,137.43,100.17]
[1720449694403,15.0,137.59,137.43,0.17]
[1720449694609,18.1754,137.55,137.38,100.0]
[1720449694801,18.1754,137.55,137.34,100.0]
[1720449694802,51.49,137.53,137.34,100.0]
[1720449695108,18.1813,137.51,137.35,21.97]
[1720449695326,51.49,137.53,137.37,100.0]
[1720449695504,51.49,137.53,137.39,100.0]
[1720449695698,7.2722,137.51,137.39,100.0]
[1720449695900,33.1724,137.58,137.42,100.0]
[1720449696139,51.49,137.58,137.45,0.17]
[1720449696337,51.49,137.58,137.42,100.0]
[1720449696627,18.1763,137.55,137.39,100.0]
[1720449696827,36.3459,137.57,137.34,100.0]
[1720449697079,7.273,137.5,137.36,100.0]
[1720449697266,7.2734,137.49,137.36,121.97]
[1720449697445,0.17,137.48,137.36,100.0]
[1720449697640,0.17,137.45,137.34,100.0]
[1720449697849,0.17,137.45,137.32,100.0]
[1720449698342,0.17,137.45,137.35,100.0]
[1720449698756,0.34,137.46,137.35,100.0]
[1720449698951,36.3367,137.61,137.39,100.0]
[1720449699151,51.49,137.57,137.39,100.0]
[1720449699357,44.70540123,137.61,137.45,121.97]
[1720449699358,59.85870123,137.61,137.45,121.97]
[1720449699671,59.85870123,137.61,137.4,200.0]
[1720449699672,36.3402,137.59,137.4,200.0]
[1720449699872,18.1735,137.57,137.41,0.17]
[1720449700174,7.2726,137.51,137.38,100.0]
[1720449700482,36.3402,137.59,137.37,21.97]
[1720449700659,69.66,137.59,137.41,100.0]